Cogmind - Beta 11 *** ADVENTURER MODE // 2022.03.23 @ 19:58:06 Player: Patbot Result: Destroyed by D-53 Grenadier with Mini Grenade Launcher Performance ------------- Evolutions (0) 0 Regions Visited (2) 400 Robots Destroyed (28) 140 Value Destroyed (708) 708 Prototype IDs (3) 60 Alien Tech Used (0) 0 Bonus (0) 0 TOTAL SCORE: 1308 Bonus ------- None Cogmind --------- Core Integrity 0/250 Matter 188/300 Energy 99/100 System Corruption 1% Temperature Cool (0) Movement Core (50) Location -10/Mines Parts ------- > --- POWER (1) -------- (None) > --- PROPULSION (2) --- (None) > --- UTILITY (2) ------ Signal Interpreter > --- WEAPON (2) ------- (None) > --- INVENTORY (5) ---- Light Ion Engine Improved EM Shotgun Assault Rifle EMP Blaster Datajack Peak State ------------ > --- POWER ------------ Light Nuclear Core > --- PROPULSION ------- Improved Treads Improved Treads > --- UTILITY ---------- Sensor Array Signal Interpreter > --- WEAPON ----------- Improved EM Shotgun Assault Rifle > --- INVENTORY -------- Light Ion Engine Light Ion Engine Aluminum Leg Improved Heat Sink Small Storage Unit [Rating: 13] Favorites ----------- Power Light Nuclear Core Engine Light Ion Engine Power Core Light Nuclear Core Propulsion Aluminum Leg Treads Improved Treads Leg Aluminum Leg Utility Signal Interpreter Device Sensor Array Storage Small Storage Unit Processor Signal Interpreter Weapon Assault Rifle Energy Gun Heavy EM Pulse Gun Ballistic Gun Assault Rifle Launcher EMP Blaster Build | -11 -10 -10 ------- Run | Scr Mat Min Slots Evolved . | . . . Power . | . . . Propulsion . | . . . Utility . | . . . Weapon . | . . . Parts Attached 18 | 5 11 2 Power 4 | 1 3 . Engine 2 | 1 1 . Core 2 | . 2 . Reactor . | . . . Propulsion 4 | 2 2 . Treads 2 | . 2 . Leg 2 | 2 . . Wheel . | . . . Hover . | . . . Flight . | . . . Utility 3 | 1 2 . Device 1 | . 1 . Storage 1 | 1 . . Processor 1 | . 1 . Hackware . | . . . Protection . | . . . Artifact . | . . . Weapon 7 | 1 4 2 Energy Gun 3 | . 3 . Energy Cannon . | . . . Ballistic Gun 2 | 1 . 1 Ballistic Cannon . | . . . Launcher 2 | . 1 1 Special Weapon . | . . . Impact Weapon . | . . . Slashing Weapon . | . . . Piercing Weapon . | . . . Special Melee Weapon . | . . . Unidentified Prototypes 2 | . 2 . Parts Lost 6 | . . 6 Power 1 | . . 1 Propulsion 2 | . . 2 Utility 1 | . . 1 Weapon 2 | . . 2 Highest Loss Streak 6 | . . 6 To Critical Strikes . | . . . Average Slot Usage (%) 96 | . 95 100 Engine 4 | . 5 . Core 9 | . 8 14 Treads 10 | . 7 28 Leg 17 | . 20 . Device 11 | . 11 14 Storage 2 | . 2 . Processor 11 | . 11 14 Energy Gun 12 | . 12 14 Ballistic Gun 10 | . 10 8 Launcher 3 | . 3 5 Naked Turns . | . . . Heaviest Build 13 | 10 13 13 Greatest Support 46 | 20 46 46 Greatest Overweight (x) . | . . . Average Overweight (x) . | . . . Largest Inventory Capacity 8 | 8 8 5 Average Capacity 5 | 6 5 5 Most Carried 5 | 4 5 5 Average Carried 3 | . 3 4 Final Capacity 8 | 8 5 5 Final Carried 5 | . 5 5 Class Distribution -------------------- 100% | Mutant Dominant Class ---------------- Mutant | -10/Materials Mutant | -10/Mines Resources | -11 -10 -10 ----------- Run | Scr Mat Min Matter Collected 551 | 178 313 60 Remotely . | . . . Salvage Created 1100 | . 817 283 Parts 68 | . 58 10 Haulers Intercepted 2 | . 2 . Recyclers Shooed 3 | . 3 . Parts Field Recycled . | . . . Retrieved Matter . | . . . Parts Self-Destructed . | . . . Prevented . | . . . Kills | -11 -10 -10 ------- Run | Scr Mat Min Combat Hostiles Destroyed 33 | . 13 20 Guns 15 | . 13 2 AOE 17 | . . 17 Classes Destroyed 7 | . 6 1 Worker 3 | . 2 1 Builder 3 | . 3 . Hauler 2 | . 2 . Watcher 3 | . 3 . Swarmer 3 | . 3 . Grunt 14 | . 10 4 Assembled 16 | . . 16 Best Kill Streak 17 | . 5 17 Combat Bots Only 16 | . 4 16 Max Kills in Single Turn 7 | . 1 7 Gunslinging . | . . . Exploded 7 | . . 7 Melee . | . . . Uniques/NPCs Destroyed . | . . . Combat | -11 -10 -10 -------- Run | Scr Mat Min Damage Taken 975 | . 285 690 Core 255 | . 88 167 Absorbed by Shields . | . . . Core Remaining (%) 100 | 100 . . Volleys Fired 71 | . 46 25 Largest 2 | . 2 2 Hottest 78 | . 78 78 Shots Fired 127 | . 89 38 Gun 107 | . 85 22 Cannon . | . . . Launcher 20 | . 4 16 Special . | . . . Kinetic 51 | . 42 9 Thermal . | . . . Explosive 12 | . . 12 Electromagnetic 64 | . 47 17 Robot Hit Streak 19 | . 15 19 Robot Miss Streak 3 | . 3 3 Penetration Max . | . . . Secondary Targets 4 | . 3 1 Max Gunslinging Chain 1 | . 1 1 Shots Hit Robots 97 | . 68 29 Core Hits 79 | . 35 44 Critical Kills . | . . . Critical Parts Destroyed . | . . . Critical Strikes 2 | . 1 1 Corrupt 2 | . 1 1 Melee Attacks . | . . . Impact . | . . . Slashing . | . . . Piercing . | . . . Sneak Attacks . | . . . Combat Hostiles . | . . . Follow-up Attacks . | . . . Damage Inflicted 2806 | . 1329 1477 Guns 1280 | . 978 302 Cannons . | . . . Explosions 1496 | . 321 1175 Melee . | . . . Ramming 30 | . 30 . Kinetic 476 | . 367 109 Thermal 282 | . 230 52 Explosive 1017 | . . 1017 Electromagnetic 1001 | . 702 299 Impact . | . . . Slashing . | . . . Piercing . | . . . Highest Corruption 1 | . 1 1 Average Corruption 1 | . 1 1 Corruption Purged . | . . . Corruption Blocked . | . . . Effects 6 | . 5 1 Message Errors 3 | . 2 1 Matter Fused 2 | . 2 . Energy Discharges 1 | . 1 . Overload Shots . | . . . Overflow Damage 44 | . 37 7 Projectiles . | . . . Explosions 44 | . 37 7 Melee . | . . . Knockbacks . | . . . Impact . | . . . Kinetic . | . . . Secondary . | . . . Self-Inflicted Damage 12 | . 4 8 Shots 2 | . 1 1 Rammed . | . . . Targets Rammed 7 | . 7 . Kicked 6 | . 6 . Crushed 1 | . 1 . Highest Temperature 201 | . 135 201 Average Temperature 62 | . 44 101 Received Heat Transfer 396 | . 201 195 Siege Activations . | . . . Robots Corrupted 2 | . 1 1 Combat Hostiles 1 | . . 1 Parts Fried 3 | . 2 1 Impact Corruptions . | . . . Robots Melted . | . . . Combat Hostiles . | . . . Parts Melted . | . . . Heat Transferred 500 | . 400 100 Parts Sabotaged . | . . . Parts Stolen . | . . . Parts Stripped . | . . . Power Chain Reactions 4 | . 3 1 Missiles Intercepted . | . . . Alert | -11 -10 -10 ------- Run | Scr Mat Min Peak Influence 333 | . 255 333 Initial . | . . . Average 112 | . 106 160 Maximum Alert Level 1 | . 1 1 Low Security (%) 85 | 100 83 90 Level 1 14 | . 16 9 Level 2 . | . . . Level 3 . | . . . Level 4 . | . . . Level 5 . | . . . High Security . | . . . Max Security . | . . . Squads Dispatched 2 | . 2 . Investigation 2 | . 2 . Extermination . | . . . Reinforcement . | . . . Assault . | . . . Garrison . | . . . Intercept . | . . . Searches Triggered . | . . . Construction Impeded . | . . . Haulers Reinforced . | . . . Active Scanning Responses . | . . . Cargo Convoy Interrupts . | . . . Stealth | -11 -10 -10 --------- Run | Scr Mat Min Distress Signals 1 | . 1 . Communications Jammed . | . . . Distress Signals . | . . . Times Spotted 43 | . 19 24 Peak Tracking Total 17 | . 4 17 Tactical Retreats 1 | . . 1 Traps | -11 -10 -10 ------- Run | Scr Mat Min Traps Triggered 2 | . 2 . Indirectly . | . . . Trap Hack Attempts . | . . . Triggered . | . . . Disarmed . | . . . Reprogrammed . | . . . Reused . | . . . Traps Extracted . | . . . Installed . | . . . Triggered . | . . . Machines | -11 -10 -10 ---------- Run | Scr Mat Min Machines Disabled 9 | . 1 8 Max in Single Turn 5 | . 1 5 Machines Sabotaged . | . . . Garrisons Compromised . | . . . Overloaded Fab Kills . | . . . Hacking | -11 -10 -10 --------- Run | Scr Mat Min Machines Accessed 6 | . 6 . Terminals 6 | . 6 . Fabricators . | . . . Repair Stations . | . . . Recycling Units . | . . . Scanalyzers . | . . . Garrison Access . | . . . Total Hacks 30 | . 30 . Successful 21 | . 21 . Failed 9 | . 9 . Catastrophic . | . . . Database Lockouts . | . . . Manual 19 | . 19 . Terminals 30 | . 30 . Fabricators . | . . . Repair Stations . | . . . Recycling Units . | . . . Scanalyzers . | . . . Garrison Access . | . . . Terminal Hacks 11 | . 11 . Prototype ID Bank 1 | . 1 . Branch Access Points 1 | . 1 . Emergency Access Points 1 | . 1 . Terminal Index 1 | . 1 . Alert Level 1 | . 1 . Locate Traps 1 | . 1 . Dispatch Records 2 | . 2 . Transport Status 2 | . 2 . Hauler Manifests 1 | . 1 . Fabricator Hacks . | . . . Repair Station Hacks . | . . . Recycling Unit Hacks . | . . . Scanalyzer . | . . . Garrison Access Hacks . | . . . Unauthorized Hacks 10 | . 10 . Terminals 10 | . 10 . Track 1 | . 1 . Assimilate 3 | . 3 . Botnet 6 | . 6 . Fabricators . | . . . Repair Stations . | . . . Recycling Units . | . . . Scanalyzers . | . . . Garrison Access . | . . . Data Cores Recovered . | . . . Used . | . . . Hacking Detections 5 | . 5 . Full Trace Events 3 | . 3 . Feedback Events . | . . . Feedback Blocked . | . . . Robot Schematics Acquired . | . . . Robots Built . | . . . Authchips . | . . . Time . | . . . Total Robot Build Rating . | . . . Part Schematics Acquired . | . . . Parts Built . | . . . Authchips . | . . . Time . | . . . Total Part Build Rating . | . . . Parts Repaired . | . . . Time . | . . . Parts Recycled . | . . . Recycled Matter . | . . . Retrieved Matter . | . . . Retrieved Components . | . . . Parts Scanalyzed . | . . . Part Schematics Acquired . | . . . Parts Damaged . | . . . Bothacking | -11 -10 -10 ------------ Run | Scr Mat Min Used RIF Installer . | . . . Robots Hacked . | . . . Non-combat . | . . . Combat . | . . . Robot Hacks Applied . | . . . Relay Couplers Released . | . . . Fabnet Peak Effective % . | . . . Robots Rewired . | . . . Allies Hacked . | . . . Hacks Repelled . | . . . Allies | -11 -10 -10 -------- Run | Scr Mat Min Total Allies . | . . . Largest Group . | . . . Highest-Rated Group . | . . . Highest-Rated Ally . | . . . Total Orders . | . . . Ally Attacks . | . . . Total Damage . | . . . Kills . | . . . Allies Corrupted . | . . . Allies Melted . | . . . Intel | -11 -10 -10 ------- Run | Scr Mat Min Robot Analysis Total . | . . . Derelict Logs Recovered 1 | . . 1 Drone Launches . | . . . Drone Recoveries . | . . . Exploration | -11 -10 -10 ------------- Run | Scr Mat Min Turns Passed 1544 | 58 1212 274 Spaces Moved 975 | 56 790 129 Core 30 | 27 . 3 Treads 306 | . 180 126 Legs 639 | 29 610 . Wheels . | . . . Hover . | . . . Flight . | . . . Fastest Speed 50 | 50 120 50 Average Speed 130 | 86 129 157 Slowest Speed 160 | 120 160 160 Overloaded Moves . | . . . Propulsion Burnouts . | . . . Robots Hopped . | . . . Cave-ins Triggered . | . . . Exploration Rate (%) 45 | 3 92 40 Regions Visited 2 Branch Regions 1 Pre-discovered Areas . | . . . Known Exits Taken 1 | . 1 . Unknown Exits Taken 1 | 1 . . Scrap Searched . | . . . Spaces Dug . | . . . Terrain Destroyed 95 | . 7 88 Melee . | . . . Projectile . | . . . AOE 95 | . 7 88 Terrain Rammed . | . . . Walls Destroyed . | . . . Machines Disabled . | . . . Actions | -11 -10 -10 --------- Run | Scr Mat Min Total 1116 | 65 890 161 Wait 19 | . 16 3 Move 973 | 55 789 129 Hop . | . . . Pick Up 20 | 5 14 1 Fast Attach . | . . . Attach 7 | 5 2 . Detach . | . . . Swap 11 | . 9 2 Drop 8 | . 7 1 Fire 71 | . 46 25 Melee . | . . . Ram . | . . . Kick 6 | . 6 . Crush 1 | . 1 . Escape Stasis . | . . . Rewire . | . . . Trap . | . . . Miscellaneous . | . . . Route ------- -11/Scrapyard -10/Materials (discovered 5 exits: *Mat x3 / *Min x2) -10/Mines (discovered 1 exit: *Mat) History --------- Turn | Location | Event 6 | -11/Scrapyard | Discovered new exit (range 16) 59 | -11/Scrapyard | Entered Materials 309 | -10/Materials | Build established: Mutant 326 | -10/Materials | Discovered new exit (range 16) 405 | -10/Materials | Discovered new exit (range 15) 564 | -10/Materials | Discovered new exit (range 15) 599 | -10/Materials | Identified exit to Mines 944 | -10/Materials | Discovered new exit (range 16) 1271 | -10/Materials | Entered Mines 1339 | -10/Mines | Discovered new exit (range 3) 1342 | -10/Mines | Identified exit to Materials 1401 | -10/Mines | Learned Materials stockpile data 1434 | -10/Mines | Received a Rocket Launcher from a helpful Derelict 1514 | -10/Mines | Assembled infested the area 1533 | -10/Mines | Core integrity fell below 50% 1544 | -10/Mines | Core integrity fell below 20% 1545 | -10/Mines | Destroyed by D-53 Grenadier with Mini Grenade Launcher Last Messages --------------- 01526_ as-58261 destroyed. 01529_ K-01 Serf collects debris. 01531_ The unstable cave ceiling collapses. 01532_ C-30 ARC bursts open, deploying its payload. 01532_ D-53 Grenadier unfolds itself. 01532_ T-07 Excavator destroyed. 01532_ as-35834 destroyed. 01532_ K-01 Serf collects debris. 01533_ as-52856 destroyed. 01534_ K-01 Serf destroyed. 01536_ The unstable cave ceiling collapses. 01540_ Imp. Treads destroyed. 01541_ K-01 Serf collects debris. 01542_ The unstable cave ceiling collapses. 01542_ Rocket Launcher destroyed. 01543_ The unstable cave ceiling collapses. 01543_ Hvy. EM Pulse Gun destroyed. 01543_ Lgt. Nuclear Core destroyed. 01544_ Sensor Array destroyed. Map ----- +----------------------------------------------------+ | ?????????????????????????????????????????????????? | | ?????????????????????????????????????????????????? | | ?????????????????????????????????????????????????? | | ?????????????????????????????????????????????????? | | ?????????????????????????????????????????????????? | | ?????????????????????????????????????????????????? | | ??????????????????????? ?????????????????????? | | ????????????????????? ???????????????????? | | ????????????????????? # #???????????????????? | | ????????????????????? #???????????????????? | | ?????????????????????? #?#?????????????????? | | ?????????????????????? #?????????????????? | | ?????????????????????? # # #?????????????????? | | ??????????????????????# ??????????????????? | | ?????????????????????? # #??????????????????? | | ?????????????????????## ???????????????????? | | ?????????????????????# # ##??????????????????? | | ????????????????????## ##?????????????????? | | ????????????????????# # #?????????????????? | | ????????????????????# ##?????????????????? | | ????????????????????# #?????????????????? | | ????????????????????# #??????????????????? | | ????????????????????# #?????????? ??????? | | ????????????????????# #????????? ??????? | | ????????????????????# #????????? #??????? | | ????????????????????## @ #????????? #??????? | | ?????????????????????# #??????# ##?????? | | ?????????????????????## d #???## ##????? | | ??????????????????????# #???# #???## | | ?????????????????#???## d ##???# #??# | | ????????????????## ## ####?## #??# | | ??????????????### = ### #???? | | ??????????????# #???## | | ??????????? #??## | | ?????????? kr #??# | | ??????????? ## # ## #### | | ??????????? ???## ## #### ## # | | ?????????????????## #?# ##??## # | | ??????????????????## ##?# #???## # | | ???????????????????# ##??# ##???# | | ???????????????????# ????## ##????# | | ??????????????????? ?????####?????# # | | ???????????????????#???????????????## ## ### | | ????????????????????????????????????## ## #?? | | ?????????????????????????????????????# ## ## ### | | ?????????????????????????????????????# ## ## | | ?????????????????????????????????????# ## ## ### | | ?????????????????????????????????????# ## # < | | ?????????????????????????????????????# ## # %% | | ?????????????????????????????????????# ## # | +----------------------------------------------------+ Best States ------------- Heat Dissipation 25 Energy Generation 14 Energy Capacity 160 Matter Stores 300 Matter Capacity 300 Sight Range 16 Robot Scan Range 14 Terrain Scan Density 10 Resistance: KI 20 Resistance: TH 20 Resistance: EX 20 Resistance: EM 20 Resistance: I 20 Resistance: S 20 Resistance: P 20 Evasion (%) 55 Recoil Reduction 2 Offensive Hacking 10 Item Schematics ----------------- None Robot Schematics ------------------ None Fabricated ------------ Nothing Alien Tech Used ----------------- None Achievements -------------- Exterminator Quick And Dirty Challenges ------------ None Game ------ Seed NodeExperimentalCutter Manual? 0 Play Time 00:18:32 Cumulative 31.6 hours Start 2022.03.23 @ 19:41:26 End 2022.03.23 @ 19:58:06 Sessions 1 Manual Loads 0 Difficulty Adventurer Special Mode None Game No. 58 Rogue 53 Adventurer 5 Explorer 0 Win Type - Total 0 Types 0/0/0/0/0/0/0/0/0 Lore% 14 Gallery% 28 Achievement% 17 Wizard Run 0 Options --------- ASCII 0 Keyboard 0 Movement Numpad Keybinds 0 Fullscreen 1 Font 20/SmallcapsGlow Map View 50x50 Tactical HUD 1 Map Filters NONE Filters NONE Steam 1 RUN: 2b6c9afe-9fc7-4e6f-8192-05bad6699e1b